Cogmind - Beta 10.1 @@@ ROGUE MODE // 2020.10.24 @ 17:13:02 Player: aperiodic Result: Destroyed by as-44001 with Assembled Blade Performance ------------- Evolutions (1) 500 Regions Visited (4) 800 Robots Destroyed (95) 475 Value Destroyed (2202) 2202 Prototype IDs (11) 220 Alien Tech Used (0) 0 Bonus (334) 334 TOTAL SCORE: 4531 Bonus ------- High Alert Combat Kills 254 Follower Combat Kills 80 Cogmind --------- Core Integrity 0/400 Matter 300/300 Energy 100/100 System Corruption 0% Temperature Cool (0) Movement Treading (180) Ox1 Location -9/Mines Parts ------- > --- POWER (1) -------- (None) > --- PROPULSION (2) --- Light Treads Improved Treads > --- UTILITY (4) ------ Large Storage Unit High-capacity Storage Unit Improved Targeting Computer > --- WEAPON (2) ------- Heavy Assault Rifle Heavy Assault Rifle > --- INVENTORY (18) --- Cooled Ion Engine Improved Treads High-capacity Matter Pod (200) Light Armor Plating Hardened Medium Armor Plating Light Assault Rifle Light Assault Rifle Light Assault Rifle Light Assault Rifle Heavy Assault Rifle Rocket Launcher Rocket Launcher Plasma Cutter Makeshift Axe Peak State ------------ > --- POWER ------------ Deuterium Engine > --- PROPULSION ------- Light Treads Light Treads > --- UTILITY ---------- Large Storage Unit High-capacity Storage Unit Hardened Medium Armor Plating Hardened Medium Armor Plating > --- WEAPON ----------- Heavy Assault Rifle Makeshift Axe > --- INVENTORY -------- Ion Engine Ion Engine Deuterium Engine Light Treads Light Treads High-capacity Matter Pod Light Armor Plating Hardened Medium Armor Plating Beam Rifle Particle Gun Beam Cannon Light Assault Rifle Light Assault Rifle Light Assault Rifle Light Assault Rifle Light Assault Rifle Grenade Launcher Rocket Launcher [Rating: 21] Favorites ----------- Power Ion Engine Engine Ion Engine Propulsion Light Treads Treads Light Treads Wheel Compact Wheel Utility Large Storage Unit Device Heat Sink Storage Large Storage Unit Processor Improved Targeting Computer Protection Hardened Medium Armor Plating Weapon Light Assault Rifle Energy Gun Small Laser Energy Cannon Beam Cannon Ballistic Gun Light Assault Rifle Launcher Grenade Launcher Slashing Weapon Makeshift Axe Build | -11 -10 -10 -9 -9 ------- Run | Scr Mat Min Mat Min Slots Evolved 2 | . . . 2 . Power . | . . . . . Propulsion . | . . . . . Utility 2 | . . . 2 . Weapon . | . . . . . Parts Attached 80 | 8 14 7 46 5 Power 7 | 1 2 . 4 . Engine 7 | 1 2 . 4 . Core . | . . . . . Reactor . | . . . . . Propulsion 20 | 4 3 3 8 2 Treads 14 | 2 . 2 8 2 Leg . | . . . . . Wheel 6 | 2 3 1 . . Hover . | . . . . . Flight . | . . . . . Utility 14 | 1 3 1 8 1 Device 3 | . 1 . 2 . Storage 5 | 1 2 1 1 . Processor 1 | . . . . 1 Hackware . | . . . . . Protection 5 | . . . 5 . Artifact . | . . . . . Weapon 39 | 2 6 3 26 2 Energy Gun 14 | 2 5 . 7 . Energy Cannon 3 | . . 1 2 . Ballistic Gun 15 | . 1 1 11 2 Ballistic Cannon . | . . . . . Launcher 5 | . . . 5 . Special Weapon . | . . . . . Impact Weapon . | . . . . . Slashing Weapon 2 | . . 1 1 . Piercing Weapon . | . . . . . Special Melee Weapon . | . . . . . Unidentified Prototypes 4 | . . . 4 . Parts Lost 22 | . 11 . 5 6 Power 3 | . 2 . . 1 Propulsion 6 | . 3 . 1 2 Utility 3 | . . . 2 1 Weapon 10 | . 6 . 2 2 Highest Loss Streak 6 | . 5 . 1 6 Average Slot Usage (%) 97 | . 92 99 98 94 Engine 12 | . 13 14 10 9 Treads 18 | . 14 17 22 21 Wheel 5 | . 12 10 . . Device 3 | . 4 . 6 . Storage 23 | . 23 27 22 22 Protection 7 | . . . 15 9 Energy Gun 10 | . 21 2 8 8 Energy Cannon 2 | . . 11 . . Ballistic Gun 10 | . 2 14 12 12 Naked Turns . | . . . . . Heaviest Build 79 | 11 40 59 79 71 Greatest Support 43 | 40 40 40 40 43 Greatest Overweight (x) 3 | . 2 2 3 1 Average Overweight (x) . | . . 1 1 1 Largest Inventory Capacity 18 | 6 12 18 18 18 Average Capacity 16 | 5 11 17 18 18 Most Carried 18 | 5 12 18 18 18 Average Carried 14 | 3 8 16 17 17 Final Capacity 18 | 6 12 18 18 18 Final Carried 18 | 4 12 18 18 14 Class Distribution -------------------- 69% | Mutant 30% | Scavenger-Mutant Dominant Class ---------------- Mutant | -10/Materials Mutant | -10/Mines Mutant | -9/Materials Mutant | -9/Mines Resources | -11 -10 -10 -9 -9 ----------- Run | Scr Mat Min Mat Min Matter Collected 1537 | 239 304 100 841 53 Remotely . | . . . . . Salvage Created 3094 | . 1034 134 1926 . Parts 193 | . 53 13 127 . Haulers Intercepted 7 | . 1 . 6 . Recyclers Shooed 6 | . 2 2 2 . Parts Field Recycled . | . . . . . Retrieved Matter . | . . . . . Parts Self-Destructed . | . . . . . Prevented . | . . . . . Kills | -11 -10 -10 -9 -9 ------- Run | Scr Mat Min Mat Min Combat Hostiles Destroyed 66 | . 18 7 40 1 Guns 47 | . 16 4 26 1 Cannons 3 | . . 3 . . AOE 16 | . 2 . 14 . Classes Destroyed 12 | . 6 1 4 1 Worker 5 | . . . 5 . Builder 2 | . . . 2 . Tunneler 1 | . . 1 . . Hauler 7 | . 1 . 6 . Recycler 4 | . 2 . 2 . Operator 4 | . 2 . 2 . Watcher 6 | . 1 . 5 . Swarmer 23 | . 3 7 13 . Grunt 32 | . 15 . 17 . Duelist 1 | . . . 1 . Sentry 9 | . . . 9 . Demolisher 1 | . . . . 1 Best Kill Streak 7 | . 4 3 7 1 Combat Bots Only 6 | . 3 3 6 1 Max Kills in Single Turn 3 | . 2 1 3 1 Gunslinging . | . . . . . Exploded 3 | . 2 . 3 . Melee . | . . . . . Uniques/NPCs Destroyed . | . . . . . Combat | -11 -10 -10 -9 -9 -------- Run | Scr Mat Min Mat Min Damage Taken 3765 | . 1010 82 1717 956 Core 597 | . 172 8 194 223 Absorbed by Shields . | . . . . . Core Remaining (%) 64 | 100 . 28 . . Volleys Fired 254 | . 100 16 130 8 Largest 2 | . 2 2 2 2 Hottest 83 | . 80 83 83 65 Shots Fired 449 | . 159 32 246 12 Gun 406 | . 159 17 218 12 Cannon 23 | . . 15 8 . Launcher 20 | . . . 20 . Special . | . . . . . Kinetic 165 | . 3 16 135 11 Thermal 134 | . 95 16 23 . Explosive 20 | . . . 20 . Electromagnetic 130 | . 61 . 68 1 Robot Hit Streak 19 | . 7 14 19 2 Robot Miss Streak 3 | . 3 2 3 2 Penetration Max . | . . . . . Secondary Targets 3 | . 1 . 2 . Max Gunslinging Chain 1 | . 1 . 1 . Shots Hit Robots 296 | . 100 19 170 7 Core Hits 152 | . 42 9 99 2 Critical Hits 3 | . . . 3 . Critical Kills 3 | . . . 3 . Critical Parts Destroyed . | . . . . . Melee Attacks 4 | . . 2 2 . Impact . | . . . . . Slashing 4 | . . 2 2 . Piercing . | . . . . . Sneak Attacks . | . . . . . Combat Hostiles . | . . . . . Follow-up Attacks . | . . . . . Damage Inflicted 4973 | . 1260 282 3366 65 Guns 3277 | . 1141 104 1967 65 Cannons 266 | . . 178 88 . Explosions 1397 | . 119 . 1278 . Melee . | . . . . . Ramming 33 | . . . 33 . Kinetic 1068 | . 16 93 894 65 Thermal 1207 | . 708 189 310 . Explosive 1245 | . . . 1245 . Electromagnetic 1420 | . 536 . 884 . Impact . | . . . . . Slashing . | . . . . . Piercing . | . . . . . Highest Corruption . | . . . . . Average Corruption . | . . . . . Corruption Purged . | . . . . . Overload Shots . | . . . . . Overflow Damage 49 | . . . 49 . Projectiles . | . . . . . Explosions 49 | . . . 49 . Melee . | . . . . . Knockbacks . | . . . . . Impact . | . . . . . Kinetic . | . . . . . Secondary . | . . . . . Self-Inflicted Damage 225 | . 30 . 195 . Shots 8 | . 1 . 7 . Rammed 3 | . . . 3 . Targets Rammed 5 | . . . 5 . Kicked . | . . . . . Crushed 2 | . . . 2 . Highest Temperature 481 | . 244 105 481 30 Average Temperature 96 | . 108 34 99 19 Received Heat Transfer 960 | . 492 . 468 . Effects 8 | . . . 8 . Shutdowns 1 | . . . 1 . Energy Bleed 2 | . . . 2 . Interference 2 | . . . 2 . Short Circuit 2 | . . . 2 . Damage (minor) 1 | . . . 1 . Siege Activations . | . . . . . Robots Corrupted . | . . . . . Combat Hostiles . | . . . . . Parts Fried 2 | . 2 . . . Impact Corruptions . | . . . . . Robots Melted . | . . . . . Combat Hostiles . | . . . . . Parts Melted 4 | . 3 . 1 . Heat Transferred 2661 | . 1550 395 716 . Parts Sabotaged . | . . . . . Parts Stolen . | . . . . . Parts Stripped . | . . . . . Power Chain Reactions 4 | . 2 . 2 . Missiles Intercepted . | . . . . . Alert | -11 -10 -10 -9 -9 ------- Run | Scr Mat Min Mat Min Peak Influence 877 | . 306 184 877 322 Initial 322 | . . 39 26 322 Average 285 | . 83 67 509 314 Maximum Alert Level 3 | . 1 . 3 1 Low Security (%) 49 | 100 94 100 7 . Level 1 18 | . 5 . 19 100 Level 2 23 | . . . 53 . Level 3 8 | . . . 19 . Level 4 . | . . . . . Level 5 . | . . . . . High Security . | . . . . . Max Security . | . . . . . Squads Dispatched 13 | . 6 . 7 . Investigation 6 | . 4 . 2 . Extermination . | . . . . . Reinforcement 7 | . 2 . 5 . Assault . | . . . . . Garrison . | . . . . . Intercept . | . . . . . Construction Impeded 3 | . . . 3 . Haulers Reinforced . | . . . . . Stealth | -11 -10 -10 -9 -9 --------- Run | Scr Mat Min Mat Min Distress Signals 4 | . . . 4 . Communications Jammed . | . . . . . Distress Signals . | . . . . . Times Spotted 116 | . 28 13 58 17 Peak Tracking Total 11 | . 5 3 5 11 Tactical Retreats 1 | . . . 1 . Traps | -11 -10 -10 -9 -9 ------- Run | Scr Mat Min Mat Min Traps Triggered 5 | . 2 . 3 . Indirectly . | . . . . . Trap Hack Attempts . | . . . . . Triggered . | . . . . . Disarmed . | . . . . . Reprogrammed . | . . . . . Reused . | . . . . . Traps Extracted . | . . . . . Installed . | . . . . . Triggered . | . . . . . Machines | -11 -10 -10 -9 -9 ---------- Run | Scr Mat Min Mat Min Machines Disabled 14 | . 1 . 13 . Max in Single Turn 2 | . 1 . 2 . Machines Sabotaged . | . . . . . Garrisons Compromised . | . . . . . Overloaded Fab Kills . | . . . . . Fab Network Shutdowns . | . . . . . Hacking | -11 -10 -10 -9 -9 --------- Run | Scr Mat Min Mat Min Machines Accessed 14 | . 5 . 9 . Terminals 11 | . 3 . 8 . Fabricators . | . . . . . Repair Stations . | . . . . . Recycling Units 3 | . 2 . 1 . Scanalyzers . | . . . . . Garrison Access . | . . . . . Total Hacks 46 | . 17 . 29 . Successful 26 | . 10 . 16 . Failed 20 | . 7 . 13 . Catastrophic 1 | . . . 1 . Database Lockouts . | . . . . . Manual 28 | . 14 . 14 . Terminals 43 | . 15 . 28 . Fabricators . | . . . . . Repair Stations . | . . . . . Recycling Units 3 | . 2 . 1 . Scanalyzers . | . . . . . Garrison Access . | . . . . . Terminal Hacks 16 | . 5 . 11 . Prototype ID Bank 5 | . 1 . 4 . Branch Access Points 1 | . . . 1 . Terminal Index 1 | . 1 . . . Alert Level 1 | . . . 1 . Unreport Threat 3 | . 1 . 2 . Locate Traps 2 | . 1 . 1 . Hauler Manifests 2 | . 1 . 1 . Zone Layout 1 | . . . 1 . Fabricator Hacks . | . . . . . Repair Station Hacks . | . . . . . Recycling Unit Hacks . | . . . . . Scanalyzer . | . . . . . Garrison Access Hacks . | . . . . . Unauthorized Hacks 10 | . 5 . 5 . Terminals 7 | . 3 . 4 . Track 1 | . . . 1 . Botnet 4 | . 2 . 2 . Operators 2 | . 1 . 1 . Fabricators . | . . . . . Repair Stations . | . . . . . Recycling Units 3 | . 2 . 1 . Tunnel 3 | . 2 . 1 . Scanalyzers . | . . . . . Garrison Access . | . . . . . Data Cores Recovered . | . . . . . Used . | . . . . . Hacking Detections 11 | . 3 . 8 . Full Trace Events 1 | . 1 . . . Feedback Events . | . . . . . Feedback Blocked . | . . . . . Robot Schematics Acquired . | . . . . . Robots Built . | . . . . . Matter . | . . . . . Time . | . . . . . Total Robot Build Rating . | . . . . . Part Schematics Acquired . | . . . . . Parts Built . | . . . . . Matter . | . . . . . Time . | . . . . . Total Part Build Rating . | . . . . . Parts Repaired . | . . . . . Time . | . . . . . Parts Recycled . | . . . . . Recycled Matter . | . . . . . Retrieved Matter . | . . . . . Retrieved Components . | . . . . . Parts Scanalyzed . | . . . . . Part Schematics Acquired . | . . . . . Parts Damaged . | . . . . . Bothacking | -11 -10 -10 -9 -9 ------------ Run | Scr Mat Min Mat Min Used RIF Installer . | . . . . . Robots Hacked . | . . . . . Non-combat . | . . . . . Combat . | . . . . . Robot Hacks Applied . | . . . . . Relay Couplers Released . | . . . . . Robots Rewired . | . . . . . Allies Hacked . | . . . . . Hacks Repelled . | . . . . . Allies | -11 -10 -10 -9 -9 -------- Run | Scr Mat Min Mat Min Total Allies 4 | . . 4 . . Largest Group 3 | . . 3 2 . Highest-Rated Group 47 | . . 47 47 . Highest-Rated Ally 31 | . . 31 31 . Total Orders . | . . . . . Ally Attacks 20 | . . 18 2 . Total Damage 259 | . . 223 36 . Kills 5 | . . 5 . . Allies Corrupted . | . . . . . Allies Melted . | . . . . . Intel | -11 -10 -10 -9 -9 ------- Run | Scr Mat Min Mat Min Robot Analysis Total . | . . . . . Derelict Logs Recovered 2 | . . 2 . . Drone Launches . | . . . . . Drone Recoveries . | . . . . . Exploration | -11 -10 -10 -9 -9 ------------- Run | Scr Mat Min Mat Min Turns Passed 4731 | 46 1177 1037 2077 394 Spaces Moved 2316 | 32 561 644 875 204 Core 7 | 7 . . . . Treads 1675 | 3 265 328 875 204 Legs . | . . . . . Wheels 634 | 22 296 316 . . Hover . | . . . . . Flight . | . . . . . Fastest Speed 50 | 50 90 100 180 180 Average Speed 155 | 89 125 145 180 180 Slowest Speed 220 | 160 160 200 220 180 Overloaded Moves . | . . . . . Propulsion Burnouts . | . . . . . Robots Hopped . | . . . . . Cave-ins Triggered . | . . . . . Exploration Rate (%) 61 | 4 74 94 89 45 Regions Visited 4 Branch Regions 2 Pre-discovered Areas 3 | . 2 . 1 . Known Exits Taken 1 | . . . 1 . Unknown Exits Taken 3 | 1 1 1 . . Scrap Searched 2 | . . 1 . 1 Spaces Dug 3 | . . 2 1 . Terrain Destroyed 110 | . 3 2 105 . Melee 3 | . . 2 1 . Projectile . | . . . . . AOE 107 | . 3 . 104 . Terrain Rammed . | . . . . . Walls Destroyed . | . . . . . Machines Disabled . | . . . . . Actions | -11 -10 -10 -9 -9 --------- Run | Scr Mat Min Mat Min Total 3024 | 49 876 720 1159 220 Wait 237 | . 181 21 35 . Move 2312 | 31 560 643 874 204 Hop . | . . . . . Pick Up 76 | 10 20 18 28 . Fast Attach 7 | . . . 6 1 Attach 33 | 6 12 1 10 4 Detach 2 | . . . 2 . Swap 40 | 2 2 6 30 . Drop 52 | . 1 13 37 1 Fire 254 | . 100 16 130 8 Melee 4 | . . 2 2 . Ram . | . . . . . Kick . | . . . . . Crush 5 | . . . 5 . Escape Stasis . | . . . . . Rewire 2 | . . . . 2 Trap . | . . . . . Miscellaneous . | . . . . . Route ------- -11/Scrapyard -10/Materials (discovered 3 exits: *Mat x2 / [*Min]) -10/Mines (discovered 2 exits: *Mat x2) -9/Materials (discovered 7 exits: [*Mat x3] / *Min x2 / *Sto x2) -9/Mines (discovered 2 exits: [*Mat] / [*Exi]) History --------- Turn | Location | Event 15 | -11/Scrapyard | Discovered new exit (range 16) 47 | -11/Scrapyard | Entered Materials 183 | -10/Materials | Discovered new exit (range 3) 310 | -10/Materials | Build established: Mutant 492 | -10/Materials | Discovered new exit (range 5) 668 | -10/Materials | Core integrity fell below 50% 692 | -10/Materials | Lost 5 parts (2n3w) 1030 | -10/Materials | Lost 3 parts (1n2w) 1193 | -10/Materials | Build established: Scavenger-Mutant 1194 | -10/Materials | Discovered new exit (range 15) 1224 | -10/Materials | Entered Mines 1310 | -10/Mines | Assisted by bots powering up and referring to "LRC-V3" 1491 | -10/Mines | Learned Materials stockpile data 1536 | -10/Mines | Discovered new exit (range 14) 1541 | -10/Mines | Received a Rocket Launcher from a helpful Derelict 1684 | -10/Mines | Escorted by a lone wolf Derelict 1705 | -10/Mines | Build established: Mutant 1900 | -10/Mines | A weapon hastily lodged in a ceiling crevice suddenly fell to the ground 1947 | -10/Mines | Discovered new exit (range 10) 2261 | -10/Mines | Entered Materials 2261 | -9/Materials | Accompanied by 2 allies 2261 | -9/Materials | Evolved 2 slots: Utility x2 2406 | -9/Materials | Discovered new exit (range 14) 2470 | -9/Materials | Discovered new exit (range 7) 2969 | -9/Materials | Build established: Scavenger-Mutant 3060 | -9/Materials | Discovered new exit (range 11) 3830 | -9/Materials | Discovered new exit (range 13) 3972 | -9/Materials | Build established: Mutant 4039 | -9/Materials | Discovered new exit (range 16) 4120 | -9/Materials | Identified exit to Mines 4120 | -9/Materials | Identified exit to Storage 4338 | -9/Materials | Entered Mines 4420 | -9/Mines | Deemed a non-threat by the Exiles lab entrance 4420 | -9/Mines | Discovered new exit (range 5) 4521 | -9/Mines | Discovered new exit (range 3) 4622 | -9/Mines | Assembled infested the area 4638 | -9/Mines | Core integrity fell below 50% 4671 | -9/Mines | Core integrity fell below 20% 4704 | -9/Mines | Lost 6 parts (1p2n1u2w) 4732 | -9/Mines | Destroyed by as-44001 with Assembled Blade Last Messages --------------- 04680_ The unstable cave ceiling collapses. 04687_ K-01 Serf collects debris. 04688_ The unstable cave ceiling collapses. 04694_ K-01 Serf collects debris. 04698_ The unstable cave ceiling collapses. 04698_ K-01 Serf collects debris. 04700_ Acquired 16 matter. 04701_ The unstable cave ceiling collapses. 04702_ R-06 Scavenger collects Tractor Beam. 04703_ The unstable cave ceiling collapses. 04706_ K-01 Serf collects debris. 04710_ The unstable cave ceiling collapses. 04710_ K-01 Serf collects debris. 04711_ The unstable cave ceiling collapses. 04711_ Acquired 37 matter. 04712_ The unstable cave ceiling collapses. 04717_ R-06 Scavenger destroyed. 04718_ The unstable cave ceiling collapses. 04719_ K-01 Serf collects debris. 04723_ The unstable cave ceiling collapses. Map ----- +----------------------------------------------------+ | ?????????????????????????????????????????????????? | | ?????????????????????????????????????????????????? | | ?????????????????????????????????????????????????? | | ?????????????????????????????????????????????????? | | ?????????????????????????????????????????????????? | | ????????????????????????????????????? ???????????? | | ????????????????????????????????###?# ###????????? | | ????????????????# ?????????????# ## #????????? | | ???????????????## ?????######## # #????????? | | ??????????????? ????# # ##???????? | | ????????????????# ##??# ! ! ##??????? | | ????????????????# ### ## %==% % #??????? | | ???????????????## # ! #####??????? | | ???????????? ### ## #??????????? | | ??????????? # ## # #??????????? | | ??????????? # # # #??????????? | | ???????????? # ## # #??????????? | | ????????????????# # #### #??????????? | | ??????????????????????# #?###??????? | | ??????????????????????# ## # % #### ##?????? | | ???????????????????#?### ##????? | | ???????????????????# ## ## ### """ #????? | | ???????????????????# # # """ #????? | | ???????????????????## ##### """ #?????? | | ????????????????????# # a #???## ###?????? | | ????????????????????# # @ # #????#### ##???????? | | ????????????????????# # # ## #???????# #????????? | | ????????????????????## # ##??????# #######??? | | ?????????????????????## ##???### #??? | | ??????????????????????#### ##### ## ## #??? | | ?###???####?????????????## ## ## #??? | | ? ??## ##??????????### ## #??? | | ? ??# ##????????## ##### ##?? | | ?# ??# #???????## # ##?## ### | | ?# ?## ######### ## ###?## # | | ?# ## ## ### #?### ! ### # | | ?# ####?# ### * ##?# # | | ?# ####### ### ##????# ## ##??# # | | ?## ### #?????# #?####?????# ## []!#?### # | | ??# ### ##?????# #??????????# ## !### # | | ??# ## ##??????# ###????????# ### ### < | | ?## ##???????# ##???????# #?# ##?# | | ## ##????????### #???????# #?# #?## | | #%[ #???????????# ##???????# ### ### """ | | ]! #??????????? #????????# """ | | ! #??????????? ##????????# """ | | ##??????????< ??????????############ | | # ##???????????##?????????????????????### | | ## ## ##?????????????????????????????????????### | | ?########????????????????????????????????????????? | +----------------------------------------------------+ Best States ------------- Heat Dissipation 38 Energy Generation 14 Energy Capacity 280 Matter Stores 300 Matter Capacity 300 Sight Range 16 Terrain Scan Density 10 Armor Coverage 450 Evasion (%) 42 Targeting Accuracy 6 Recoil Reduction 2 Item Schematics ----------------- None Robot Schematics ------------------ None Fabricated ------------ Nothing Alien Tech Used ----------------- None Achievements -------------- None Challenges ------------ None Game ------ Seed FrostSurveybotGuard Manual? 0 Play Time 00:54:45 Cumulative 136.8 hours Start 2020.10.24 @ 16:20:32 End 2020.10.24 @ 17:13:02 Sessions 1 Manual Loads 0 Difficulty Rogue Special Mode None Game No. 61 Rogue 57 Adventurer 4 Explorer 0 Win Type - Total 1 Types 1/0/0/0/0/0/0/0/0 Lore% 52 Gallery% 65 Achievement% 50 Wizard Run 0 Options --------- ASCII 1 Keyboard 0 Movement Arrows Keybinds 0 Fullscreen 1 Font 18/SmallcapsGlow Map View 76x50 Tactical HUD 1 Map Filters NONE Filters NONE Steam 1 RUN: b359ae6d-4cbd-4ea1-9e12-fa05e785dbdb